[Event "Biel Master Tournament 2019"]
[Site "Biel"]
[Date "2019.07.24"]
[Round "3.15"]
[White "Dhulipalla Bala Chandra Prasad"]
[Black "Lalith Babu M R"]
[Result "1/2-1/2"]
[ECO "A14"]
[WhiteElo "2419"]
[BlackElo "2580"]
[Annotator "ChessBase"]
[PlyCount "93"]
[EventDate "2019.07.20"]
[EventType "swiss"]
[EventCountry "SUI"]
[SourceTitle "playchess.com"]
[Source "ChessBase"]
[SourceQuality "1"]
[TimeControl "40/5400+30:1800+30"]

1. Nf3 {[%emt 0:00:00]} Nf6 {[%emt 0:00:00]} 2. c4 {[%emt 0:00:00]} c5 {[%emt 0:01:30]} 3. g3 {[%emt 0:00:01]} b6 {[%emt 0:00:11]} 4. Bg2 {[%emt 0:00:09]} Bb7 {[%emt 0:00:05]} 5. O-O {[%emt 0:00:37]} e6 {[%emt 0:00:51]} 6. b3 {[%emt 0:00:59]} Be7 {[%emt 0:00:07]} 7. Bb2 {[%emt 0:00:17]} O-O {[%emt 0:00:29]} 8. Nc3 {[%emt 0:01:12]} d5 {[%emt 0:07:44]} 9. e3 {[%emt 0:01:26]} Nbd7 {[%emt 0:12:21]} 10. Qe2 {[%emt 0:00:53]} dxc4 {[%emt 0:02:34]} 11. bxc4 {[%emt 0:00:21]} Ne4 {[%emt 0:00:36]} 12. Nxe4 {[%emt 0:28:07]} Bxe4 {[%emt 0:00:08]} 13. d3 {[%emt 0:00:24]} Bc6 {[%emt 0:01:47]} 14. Nd2 {[%emt 0:03:42]} Bxg2 {[%emt 0:02:03]} 15. Kxg2 {[%emt 0:00:52]} Qc7 {[%emt 0:00:08]} 16. Ne4 {[%emt 0:06:54]} Rfd8 {[%emt 0:02:24]} 17. f4 {[%emt 0:09:13]} b5 {[%emt 0:06:48]} 18. f5 {[%emt 0:12:30]} exf5 {[%emt 0:01:08]} 19. Rxf5 {[%emt 0:00:41]} bxc4 {[%emt 0:03:18]} 20. Qg4 {[%emt 0:22:05]} f6 {[%emt 0:01:08]} 21. dxc4 {[%emt 0:05:57]} Qc6 {[%emt 0:05:29]} 22. Raf1 {[%emt 0:01:10]} Qe6 {[%emt 0:01:10]} 23. R1f2 {[%emt 0:01:14]} Re8 {[%emt 0:01:41]} 24. Nc3 {[%emt 0:00:55]} Ne5 {[%emt 0:01:04]} 25. Qe4 {[%emt 0:01:07]} g6 {[%emt 0:00:17]} 26. Rxe5 {[%emt 0:01:38]} Qxe5 {[%emt 0:00:29]} 27. Qxe5 {[%emt 0:00:02]} fxe5 {[%emt 0:00:04]} 28. Nd5 {[%emt 0:00:04]} Bd8 {[%emt 0:00:30]} 29. Ba3 {[%emt 0:00:24]} Rc8 {[%emt 0:00:19]} 30. Rb2 {[%emt 0:00:35]} Re6 {[%emt 0:00:12]} 31. Rb7 {[%emt 0:00:50]} Ra6 {[%emt 0:01:25]} 32. Bb2 {[%emt 0:00:04]} Rxa2 {[%emt 0:03:37]} 33. Kf3 {[%emt 0:00:02]} h5 {[%emt 0:00:07]} 34. h3 {[%emt 0:01:45]} Ra4 {[%emt 0:00:40]} 35. Bxe5 {[%emt 0:00:05]} a5 {[%emt 0:00:07]} 36. Bf6 {[%emt 0:00:25]} Kf8 {[%emt 0:00:45]} 37. Ke4 {[%emt 0:01:03]} Rxc4+ {[%emt 0:03:11]} 38. Ke5 {[%emt 0:00:02]} Rb4 {[%emt 0:00:52]} 39. Rh7 {[%emt 0:00:42]} Bxf6+ {[%emt 0:00:34]} 40. Nxf6 {[%emt 0:00:26]} Rc6 {[%emt 0:00:38]} 41. Rd7 {[%emt 0:13:14]} Rb8 {[%emt 0:06:53]} 42. Ra7 {[%emt 0:02:06]} Rbc8 {[%emt 0:13:20]} 43. Nh7+ {[%emt 0:03:40]} Ke8 {[%emt 0:03:29]} 44. Nf6+ {[%emt 0:00:10]} Kf8 {[%emt 0:02:21]} 45. Nh7+ {[%emt 0:00:06]} Ke8 {[%emt 0:00:15]} 46. Nf6+ {[%emt 0:00:05]} Kf8 {[%emt 0:00:44]} 47. Ke4 {[%emt 0:00:18]} 1/2-1/2

[Event "Biel Master Tournament 2019"]
[Site "Biel"]
[Date "2019.07.24"]
[Round "3.16"]
[White "Sukandar, Irine Kharisma"]
[Black "Aryan, Chopra"]
[Result "1/2-1/2"]
[ECO "B90"]
[WhiteElo "2396"]
[BlackElo "2553"]
[Annotator "ChessBase"]
[PlyCount "110"]
[EventDate "2019.07.20"]
[EventType "swiss"]
[EventCountry "SUI"]
[SourceTitle "playchess.com"]
[Source "ChessBase"]
[SourceQuality "1"]
[TimeControl "40/5400+30:1800+30"]

1. e4 {[%emt 0:00:00]} c5 {[%emt 0:00:00]} 2. Nf3 {[%emt 0:00:26]} d6 {[%emt 0:00:00]} 3. d4 {[%emt 0:00:56]} cxd4 {[%emt 0:00:00]} 4. Nxd4 {[%emt 0:00:06]} Nf6 {[%emt 0:00:00]} 5. Nc3 {[%emt 0:00:10]} a6 {[%emt 0:00:00]} 6. f3 {[%emt 0:00:51]} e5 {[%emt 0:00:11]} 7. Nb3 {[%emt 0:00:07]} Be6 {[%emt 0:00:09]} 8. Be3 {[%emt 0:00:22]} h5 {[%emt 0:00:28]} 9. Nd5 {[%emt 0:02:04]} Bxd5 {[%emt 0:00:22]} 10. exd5 {[%emt 0:00:06]} Nbd7 {[%emt 0:00:05]} 11. Qd2 {[%emt 0:01:08]} g6 {[%emt 0:00:27]} 12. Be2 {[%emt 0:00:47]} Bg7 {[%emt 0:00:36]} 13. O-O {[%emt 0:02:12]} b6 {[%emt 0:00:24]} 14. c4 {[%emt 0:03:16]} O-O {[%emt 0:00:39]} 15. Rac1 {[%emt 0:01:15]} Nh7 {[%emt 0:03:14]} 16. Na1 {[%emt 0:02:14]} a5 {[%emt 0:02:33]} 17. Nc2 {[%emt 0:00:24]} Nc5 {[%emt 0:03:13]} 18. Na3 {[%emt 0:03:25]} f5 {[%emt 0:01:14]} 19. Qc2 {[%emt 0:01:07]} Re8 {[%emt 0:09:05]} 20. Nb5 {[%emt 0:06:06]} Bf6 {[%emt 0:12:42]} 21. b3 {[%emt 0:08:59]} Bg5 {[%emt 0:02:00]} 22. Bxg5 {[%emt 0:00:42]} Nxg5 {[%emt 0:00:05]} 23. a3 {[%emt 0:00:48]} Nf7 {[%emt 0:12:13]} 24. b4 {[%emt 0:01:37]} Na6 {[%emt 0:03:56]} 25. Qb3 {[%emt 0:04:21]} h4 {[%emt 0:05:47]} 26. Kh1 {[%emt 0:04:34]} Kg7 {[%emt 0:01:49]} 27. Qc3 {[%emt 0:03:09]} Nc7 {[%emt 0:04:58]} 28. Qe3 {[%emt 0:09:29]} Nxb5 {[%emt 0:06:37]} 29. cxb5 {[%emt 0:00:06]} axb4 {[%emt 0:00:11]} 30. axb4 {[%emt 0:00:06]} Re7 {[%emt 0:08:51]} 31. Rc6 {[%emt 0:01:03]} Rb7 {[%emt 0:00:13]} 32. Rfc1 {[%emt 0:00:42]} Nh6 {[%emt 0:02:20]} 33. Qc3 {[%emt 0:03:42]} Nf7 {[%emt 0:03:04]} 34. Qe3 {[%emt 0:07:29]} Ra2 {[%emt 0:04:24]} 35. Bc4 {[%emt 0:04:15]} Ra4 {[%emt 0:00:31]} 36. Bf1 {[%emt 0:02:22]} Ra8 {[%emt 0:07:42]} 37. Kg1 {[%emt 0:01:15]} Kh7 {[%emt 0:03:28]} 38. Qf2 {[%emt 0:02:49]} Kg7 {[%emt 0:00:52]} 39. R6c4 {[%emt 0:02:17]} f4 {[%emt 0:02:45]} 40. Qc2 {[%emt 0:01:18]} Qg5 {[%emt 0:01:49]} 41. Rc8 {[%emt 0:35:23]} Ra3 {[%emt 0:14:33]} 42. Qc6 {[%emt 0:00:00]} Re7 {[%emt 0:00:12]} 43. Qxb6 {[%emt 0:00:00]} e4 {[%emt 0:05:51]} 44. Qd4+ {[%emt 0:00:00]} Ne5 {[%emt 0:01:44]} 45. R8c7 {[%emt 0:00:45]} Kh6 {[%emt 0:06:35]} 46. Qb2 {[%emt 0:01:35]} Rxc7 {[%emt 0:00:17]} 47. Rxc7 {[%emt 0:04:20]} Rxf3 {[%emt 0:00:41]} 48. b6 {[%emt 0:00:16]} e3 {[%emt 0:00:51]} 49. Rc2 {[%emt 0:06:00]} Rh3 {[%emt 0:03:43]} 50. Kh1 {[%emt 0:03:57]} Rxh2+ {[%emt 0:00:50]} 51. Kxh2 {[%emt 0:00:01]} Qg3+ {[%emt 0:00:34]} 52. Kh1 {[%emt 0:00:12]} Ng4 {[%emt 0:00:29]} 53. Qh8+ {[%emt 0:00:08]} Kg5 {[%emt 0:00:01]} 54. Qd8+ {[%emt 0:00:13]} Kh5 {[%emt 0:00:33]} 55. Qh8+ {[%emt 0:00:17]} Kg5 {[%emt 0:00:04]} 1/2-1/2

[Event "Biel Master Tournament 2019"]
[Site "Biel"]
[Date "2019.07.24"]
[Round "3.17"]
[White "Epishin, Vladimir"]
[Black "Kamber, Bruno"]
[Result "1/2-1/2"]
[ECO "B06"]
[WhiteElo "2549"]
[BlackElo "2299"]
[Annotator "ChessBase"]
[PlyCount "103"]
[EventDate "2019.07.20"]
[EventType "swiss"]
[EventCountry "SUI"]
[SourceTitle "playchess.com"]
[Source "ChessBase"]
[SourceQuality "1"]
[TimeControl "40/5400+30:1800+30"]

1. d4 {[%emt 0:00:10]} g6 {[%emt 0:02:19]} 2. e4 {[%emt 0:01:47]} Bg7 {[%emt 0:00:10]} 3. Nf3 {[%emt 0:00:21]} Nc6 {[%emt 0:00:15]} 4. Bc4 {[%emt 0:03:48]} d6 {[%emt 0:04:57]} 5. O-O {[%emt 0:04:11]} Nf6 {[%emt 0:00:19]} 6. d5 {[%emt 0:00:06]} Nb8 {[%emt 0:08:34]} 7. e5 {[%emt 0:04:18]} dxe5 {[%emt 0:01:10]} 8. Nxe5 {[%emt 0:00:09]} O-O {[%emt 0:00:07]} 9. Nc3 {[%emt 0:02:37]} c6 {[%emt 0:02:34]} 10. dxc6 {[%emt 0:06:25]} Nxc6 {[%emt 0:07:58]} 11. Qxd8 {[%emt 0:01:06]} Nxd8 {[%emt 0:00:24]} 12. Rd1 {[%emt 0:01:54]} Bf5 {[%emt 0:00:33]} 13. Bb3 {[%emt 0:00:12]} Ne4 {[%emt 0:23:41]} 14. Nxe4 {[%emt 0:00:53]} Bxe5 {[%emt 0:00:07]} 15. Nc5 {[%emt 0:01:03]} Bd6 {[%emt 0:05:12]} 16. Be3 {[%emt 0:00:03]} Rc8 {[%emt 0:00:46]} 17. Nd3 {[%emt 0:01:17]} Nc6 {[%emt 0:00:11]} 18. c3 {[%emt 0:00:36]} Rfd8 {[%emt 0:06:59]} 19. Bc2 {[%emt 0:00:58]} Ne5 {[%emt 0:01:47]} 20. Nxe5 {[%emt 0:03:22]} Bxc2 {[%emt 0:00:34]} 21. Rd2 {[%emt 0:00:04]} Ba4 {[%emt 0:02:50]} 22. Rd4 {[%emt 0:00:44]} Bc2 {[%emt 0:05:33]} 23. f4 {[%emt 0:07:00]} f6 {[%emt 0:02:43]} 24. Nc4 {[%emt 0:01:43]} Bc7 {[%emt 0:02:15]} 25. Rxd8+ {[%emt 0:00:22]} Rxd8 {[%emt 0:01:07]} 26. g3 {[%emt 0:01:48]} b6 {[%emt 0:01:14]} 27. Kf2 {[%emt 0:00:21]} Kf7 {[%emt 0:00:21]} 28. Rc1 {[%emt 0:00:12]} Be4 {[%emt 0:00:38]} 29. Nd2 {[%emt 0:00:02]} Bf5 {[%emt 0:01:43]} 30. Nf3 {[%emt 0:02:02]} Bg4 {[%emt 0:00:14]} 31. c4 {[%emt 0:00:32]} h6 {[%emt 0:04:14]} 32. h4 {[%emt 0:01:34]} Rd3 {[%emt 0:04:05]} 33. Ne1 {[%emt 0:01:42]} Rd7 {[%emt 0:02:54]} 34. b4 {[%emt 0:01:00]} Rd1 {[%emt 0:07:17]} 35. Rxd1 {[%emt 0:01:11]} Bxd1 {[%emt 0:00:02]} 36. Nf3 {[%emt 0:00:06]} Ke6 {[%emt 0:00:15]} 37. Nd4+ {[%emt 0:03:20]} Kd7 {[%emt 0:00:05]} 38. Nb5 {[%emt 0:00:24]} a6 {[%emt 0:00:25]} 39. Nc3 {[%emt 0:02:39]} Bg4 {[%emt 0:00:04]} 40. b5 {[%emt 0:00:21]} axb5 {[%emt 0:01:19]} 41. cxb5 {[%emt 0:30:05]} Be6 {[%emt 0:31:07]} 42. a4 {[%emt 0:01:55]} Bb3 {[%emt 0:00:38]} 43. Bd4 {[%emt 0:01:08]} Bd6 {[%emt 0:00:00]} 44. Bxb6 {[%emt 0:00:00]} Bb4 {[%emt 0:00:00]} 45. Bd4 {[%emt 0:00:00]} Bxc3 {[%emt 0:00:00]} 46. Bxc3 {[%emt 0:00:00]} Bxa4 {[%emt 0:00:00]} 47. b6 {[%emt 0:00:00]} Bc6 {[%emt 0:00:00]} 48. g4 {[%emt 0:00:00]} Ke6 {[%emt 0:00:00]} 49. Ke3 {[%emt 0:00:00]} h5 {[%emt 0:00:00]} 50. gxh5 {[%emt 0:00:00]} gxh5 {[%emt 0:00:00]} 51. Bb4 {[%emt 0:00:00]} Bb7 {[%emt 0:00:00]} 52. Kd4 {[%emt 0:00:00]} 1/2-1/2

[Event "Biel Master Tournament 2019"]
[Site "Biel"]
[Date "2019.07.24"]
[Round "3.19"]
[White "Karavade, Eesha"]
[Black "Gukesh D"]
[Result "0-1"]
[ECO "B31"]
[WhiteElo "2355"]
[BlackElo "2520"]
[Annotator "ChessBase"]
[PlyCount "108"]
[EventDate "2019.07.20"]
[EventType "swiss"]
[EventCountry "SUI"]
[SourceTitle "playchess.com"]
[Source "ChessBase"]
[SourceQuality "1"]
[TimeControl "40/5400+30:1800+30"]

1. e4 {[%emt 0:00:00]} c5 {[%emt 0:00:13]} 2. Nf3 {[%emt 0:00:12]} Nc6 {[%emt 0:00:44]} 3. Bb5 {[%emt 0:00:21]} g6 {[%emt 0:02:58]} 4. Bxc6 {[%emt 0:01:08]} dxc6 {[%emt 0:00:02]} 5. d3 {[%emt 0:01:16]} Bg7 {[%emt 0:00:08]} 6. h3 {[%emt 0:00:07]} Nf6 {[%emt 0:00:06]} 7. Nc3 {[%emt 0:01:45]} Nd7 {[%emt 0:00:05]} 8. Be3 {[%emt 0:01:06]} e5 {[%emt 0:00:13]} 9. Qd2 {[%emt 0:00:35]} h6 {[%emt 0:00:06]} 10. O-O {[%emt 0:00:06]} b6 {[%emt 0:00:03]} 11. Nh2 {[%emt 0:01:32]} Nf8 {[%emt 0:00:11]} 12. f4 {[%emt 0:01:15]} exf4 {[%emt 0:00:05]} 13. Bxf4 {[%emt 0:00:05]} Ne6 {[%emt 0:02:41]} 14. Be3 {[%emt 0:05:11]} Nd4 {[%emt 0:00:44]} 15. Rae1 {[%emt 0:01:05]} Be6 {[%emt 0:02:07]} 16. e5 {[%emt 0:01:41]} Nf5 {[%emt 0:06:51]} 17. Ng4 {[%emt 0:12:45]} Nxe3 {[%emt 0:06:52]} 18. Qxe3 {[%emt 0:01:15]} Bxg4 {[%emt 0:20:00]} 19. hxg4 {[%emt 0:00:06]} O-O {[%emt 0:00:18]} 20. Qf4 {[%emt 0:07:30]} Qc7 {[%emt 0:16:58]} 21. g5 {[%emt 0:06:32]} hxg5 {[%emt 0:06:04]} 22. Qxg5 {[%emt 0:00:14]} Rae8 {[%emt 0:00:27]} 23. Ne4 {[%emt 0:08:59]} Qxe5 {[%emt 0:04:42]} 24. Nf6+ {[%emt 0:08:40]} Bxf6 {[%emt 0:01:38]} 25. Rxe5 {[%emt 0:00:06]} Bxg5 {[%emt 0:00:03]} 26. Rxg5 {[%emt 0:00:07]} Re2 {[%emt 0:00:58]} 27. Rf2 {[%emt 0:00:03]} Re1+ {[%emt 0:07:48]} 28. Rf1 {[%emt 0:05:01]} Rfe8 {[%emt 0:03:41]} 29. Rg4 {[%emt 0:00:57]} R8e2 {[%emt 0:04:15]} 30. Rc4 {[%emt 0:00:54]} Rxf1+ {[%emt 0:00:40]} 31. Kxf1 {[%emt 0:00:03]} Rd2 {[%emt 0:00:48]} 32. a3 {[%emt 0:00:30]} a5 {[%emt 0:04:44]} 33. Rc3 {[%emt 0:00:36]} Rd1+ {[%emt 0:06:45]} 34. Ke2 {[%emt 0:02:01]} Rg1 {[%emt 0:00:04]} 35. Kf3 {[%emt 0:01:30]} Rb1 {[%emt 0:01:17]} 36. b3 {[%emt 0:12:43]} Rf1+ {[%emt 0:01:13]} 37. Ke2 {[%emt 0:00:41]} Rf4 {[%emt 0:00:21]} 38. Ke3 {[%emt 0:04:27]} Rg4 {[%emt 0:00:04]} 39. Kf3 {[%emt 0:00:39]} Rd4 {[%emt 0:00:04]} 40. b4 {[%emt 0:02:11]} axb4 {[%emt 0:00:28]} 41. axb4 {[%emt 0:30:02]} Rxb4 {[%emt 0:30:43]} 42. Ra3 {[%emt 0:01:16]} c4 {[%emt 0:00:00]} 43. d4 {[%emt 0:00:00]} Rb2 {[%emt 0:00:00]} 44. Ra6 {[%emt 0:00:00]} Kf8 {[%emt 0:00:00]} 45. g4 {[%emt 0:00:00]} b5 {[%emt 0:00:00]} 46. Rxc6 {[%emt 0:00:00]} Rxc2 {[%emt 0:00:00]} 47. Rb6 {[%emt 0:00:00]} Rb2 {[%emt 0:00:00]} 48. Rc6 {[%emt 0:00:00]} Ke7 {[%emt 0:00:00]} 49. g5 {[%emt 0:00:00]} Kd7 {[%emt 0:00:00]} 50. Rc5 {[%emt 0:00:00]} Rb3+ {[%emt 0:00:00]} 51. Kf4 {[%emt 0:00:00]} c3 {[%emt 0:00:00]} 52. Ke5 {[%emt 0:00:00]} b4 {[%emt 0:00:00]} 53. Kd5 {[%emt 0:00:00]} Rb1 {[%emt 0:00:00]} 54. Rc4 {[%emt 0:00:00]} Rg1 {[%emt 0:00:12]} 0-1

[Event "Biel Master Tournament 2019"]
[Site "Biel"]
[Date "2019.07.24"]
[Round "3.20"]
[White "Shyam, Sundar M."]
[Black "Samant Aditya S"]
[Result "1/2-1/2"]
[ECO "B58"]
[WhiteElo "2520"]
[BlackElo "2296"]
[Annotator "ChessBase"]
[PlyCount "100"]
[EventDate "2019.07.20"]
[EventType "swiss"]
[EventCountry "SUI"]
[SourceTitle "playchess.com"]
[Source "ChessBase"]
[SourceQuality "1"]
[TimeControl "40/5400+30:1800+30"]

1. e4 {[%emt 0:00:00]} c5 {[%emt 0:00:00]} 2. Nf3 {[%emt 0:00:00]} d6 {[%emt 0:00:00]} 3. d4 {[%emt 0:00:11]} cxd4 {[%emt 0:00:00]} 4. Nxd4 {[%emt 0:00:10]} Nf6 {[%emt 0:00:00]} 5. Nc3 {[%emt 0:00:16]} Nc6 {[%emt 0:00:05]} 6. Be2 {[%emt 0:00:25]} e5 {[%emt 0:00:07]} 7. Nxc6 {[%emt 0:00:05]} bxc6 {[%emt 0:00:06]} 8. Qd3 {[%emt 0:00:02]} Be7 {[%emt 0:00:23]} 9. O-O {[%emt 0:00:06]} O-O {[%emt 0:00:12]} 10. Qg3 {[%emt 0:00:04]} Rb8 {[%emt 0:01:12]} 11. b3 {[%emt 0:00:20]} Be6 {[%emt 0:05:47]} 12. f4 {[%emt 0:02:58]} Kh8 {[%emt 0:16:17]} 13. Kh1 {[%emt 0:03:29]} Qc7 {[%emt 0:01:23]} 14. Bd2 {[%emt 0:04:20]} Rfd8 {[%emt 0:01:52]} 15. Rad1 {[%emt 0:01:38]} Rbc8 {[%emt 0:06:49]} 16. b4 {[%emt 0:25:10]} Rb8 {[%emt 0:10:44]} 17. a3 {[%emt 0:01:09]} a5 {[%emt 0:03:01]} 18. bxa5 {[%emt 0:03:25]} Rb2 {[%emt 0:06:37]} 19. a6 {[%emt 0:11:42]} Rxc2 {[%emt 0:03:27]} 20. Qd3 {[%emt 0:00:28]} Rb2 {[%emt 0:00:28]} 21. f5 {[%emt 0:00:04]} Bb3 {[%emt 0:02:39]} 22. Rb1 {[%emt 0:15:20]} Bc2 {[%emt 0:04:02]} 23. Rxb2 {[%emt 0:00:05]} Bxd3 {[%emt 0:00:08]} 24. Bxd3 {[%emt 0:00:01]} Ra8 {[%emt 0:18:10]} 25. Rb7 {[%emt 0:09:26]} Qd8 {[%emt 0:00:08]} 26. a7 {[%emt 0:00:55]} d5 {[%emt 0:02:43]} 27. Rfb1 {[%emt 0:00:04]} Bd6 {[%emt 0:05:23]} 28. exd5 {[%emt 0:04:16]} cxd5 {[%emt 0:01:00]} 29. Nb5 {[%emt 0:10:16]} Bc5 {[%emt 0:01:02]} 30. Bb4 {[%emt 0:05:33]} Bxa7 {[%emt 0:05:04]} 31. Nxa7 {[%emt 0:00:15]} e4 {[%emt 0:03:03]} 32. Bf1 {[%emt 0:01:11]} d4 {[%emt 0:01:14]} 33. Nb5 {[%emt 0:01:12]} Qd5 {[%emt 0:01:48]} 34. Nd6 {[%emt 0:00:09]} d3 {[%emt 0:00:34]} 35. Nxf7+ {[%emt 0:01:25]} Kg8 {[%emt 0:00:04]} 36. Bd2 {[%emt 0:00:49]} h6 {[%emt 0:01:37]} 37. Bc3 {[%emt 0:00:45]} Ng4 {[%emt 0:00:43]} 38. Nxh6+ {[%emt 0:00:14]} Nxh6 {[%emt 0:00:13]} 39. Rxg7+ {[%emt 0:00:02]} Kf8 {[%emt 0:00:08]} 40. f6 {[%emt 0:00:24]} Nf7 {[%emt 0:01:03]} 41. g3 {[%emt 0:31:32]} d2 {[%emt 0:15:23]} 42. Bb4+ {[%emt 0:00:00]} Nd6 {[%emt 0:04:06]} 43. Be2 {[%emt 0:00:00]} e3+ {[%emt 0:02:35]} 44. Kg1 {[%emt 0:00:00]} Rc8 {[%emt 0:01:24]} 45. Rd1 {[%emt 0:00:00]} Rc1 {[%emt 0:02:39]} 46. Rd7 {[%emt 0:00:00]} Rxd1+ {[%emt 0:00:43]} 47. Bxd1 {[%emt 0:00:00]} e2 {[%emt 0:01:06]} 48. Bxe2 {[%emt 0:00:00]} d1=Q+ 49. Bxd1 {[%emt 0:00:00]} Qxd1+ {[%emt 0:01:03]} 50. Kf2 {[%emt 0:00:00]} Qd5 {[%emt 0:04:02]} 1/2-1/2

[Event "Biel Master Tournament 2019"]
[Site "Biel"]
[Date "2019.07.25"]
[Round "4.6"]
[White "Gopal G.N."]
[Black "Keymer, Vincent"]
[Result "1/2-1/2"]
[ECO "B90"]
[WhiteElo "2594"]
[BlackElo "2513"]
[Annotator "ChessBase"]
[PlyCount "127"]
[EventDate "2019.07.20"]
[EventType "swiss"]
[EventCountry "SUI"]
[SourceTitle "playchess.com"]
[Source "ChessBase"]
[SourceQuality "1"]
[TimeControl "40/5400+30:1800+30"]

1. e4 {[%emt 0:00:00]} c5 {[%emt 0:00:00]} 2. Nf3 {[%emt 0:00:00]} d6 {[%emt 0:00:00]} 3. d4 {[%emt 0:00:00]} cxd4 {[%emt 0:00:00]} 4. Nxd4 {[%emt 0:00:00]} Nf6 {[%emt 0:00:00]} 5. Nc3 {[%emt 0:00:00]} a6 {[%emt 0:00:00]} 6. Be3 {[%emt 0:00:00]} e5 {[%emt 0:00:00]} 7. Nf3 {[%emt 0:00:00]} Be7 {[%emt 0:00:57]} 8. Bc4 {[%emt 0:00:00]} Be6 {[%emt 0:00:25]} 9. Bb3 {[%emt 0:00:08]} Nbd7 {[%emt 0:06:09]} 10. O-O {[%emt 0:01:22]} Rc8 {[%emt 0:02:13]} 11. Qe2 {[%emt 0:14:28]} Qc7 {[%emt 0:09:18]} 12. Rfd1 {[%emt 0:05:04]} Qc6 {[%emt 0:23:41]} 13. Bg5 {[%emt 0:04:24]} O-O {[%emt 0:05:02]} 14. Rac1 {[%emt 0:05:46]} Qb6 {[%emt 0:05:17]} 15. h3 {[%emt 0:07:20]} Qb4 {[%emt 0:06:01]} 16. Nd2 {[%emt 0:23:21]} h6 {[%emt 0:06:12]} 17. Bxf6 {[%emt 0:00:57]} Bxf6 {[%emt 0:04:48]} 18. a3 {[%emt 0:07:33]} Qc5 {[%emt 0:00:55]} 19. Nf3 {[%emt 0:01:50]} Nb6 {[%emt 0:07:45]} 20. Nd5 {[%emt 0:01:46]} Bd8 {[%emt 0:01:43]} 21. c3 {[%emt 0:03:26]} Nc4 {[%emt 0:02:39]} 22. a4 {[%emt 0:05:51]} b5 {[%emt 0:01:19]} 23. Ra1 {[%emt 0:01:54]} f5 {[%emt 0:01:08]} 24. axb5 {[%emt 0:02:32]} axb5 {[%emt 0:00:26]} 25. Ra6 {[%emt 0:02:16]} Kh8 {[%emt 0:03:31]} 26. Bxc4 {[%emt 0:05:27]} bxc4 {[%emt 0:00:38]} 27. Ne3 {[%emt 0:00:38]} Be7 {[%emt 0:06:30]} 28. exf5 {[%emt 0:00:38]} Bxf5 {[%emt 0:00:25]} 29. Rd5 {[%emt 0:02:30]} Bd3 {[%emt 0:01:21]} 30. Rxc5 {[%emt 0:00:59]} Bxe2 {[%emt 0:00:05]} 31. Rxc8 Rxc8 {[%emt 0:00:01]} 32. Nf5 {[%emt 0:00:11]} Bf6 {[%emt 0:02:16]} 33. Nxd6 {[%emt 0:00:46]} Rb8 {[%emt 0:00:24]} 34. Ne4 {[%emt 0:02:25]} Rxb2 {[%emt 0:00:41]} 35. Nxf6 {[%emt 0:00:10]} gxf6 {[%emt 0:00:57]} 36. Rxf6 {[%emt 0:00:04]} Kg7 {[%emt 0:00:08]} 37. Rc6 {[%emt 0:00:44]} Rb1+ {[%emt 0:02:40]} 38. Kh2 {[%emt 0:00:02]} Rb5 {[%emt 0:00:27]} 39. Kg3 {[%emt 0:04:15]} Rd5 {[%emt 0:01:09]} 40. Re6 {[%emt 0:00:40]} Rd3 {[%emt 0:00:19]} 41. Rxe5 {[%emt 0:30:20]} Bxf3 {[%emt 0:30:09]} 42. gxf3 {[%emt 0:00:05]} Rxc3 {[%emt 0:00:09]} 43. Rc5 {[%emt 0:00:00]} Rc2 {[%emt 0:00:00]} 44. f4 {[%emt 0:00:00]} c3 {[%emt 0:00:00]} 45. Kf3 {[%emt 0:00:00]} Rc1 {[%emt 0:00:00]} 46. Kg4 {[%emt 0:00:00]} Kf6 {[%emt 0:00:00]} 47. Rc6+ {[%emt 0:00:00]} Ke7 {[%emt 0:00:00]} 48. Kf5 {[%emt 0:00:00]} Kd7 {[%emt 0:00:00]} 49. Rc4 {[%emt 0:00:00]} Kd6 {[%emt 0:00:00]} 50. Kf6 {[%emt 0:00:00]} Kd5 {[%emt 0:00:00]} 51. Rc8 {[%emt 0:00:00]} Kd4 {[%emt 0:00:01]} 52. f5 {[%emt 0:00:00]} Rf1 {[%emt 0:02:03]} 53. Kg7 {[%emt 0:01:33]} Rxf2 {[%emt 0:00:33]} 54. f6 {[%emt 0:00:08]} Rg2+ {[%emt 0:00:10]} 55. Kxh6 {[%emt 0:01:49]} Rh2 {[%emt 0:00:07]} 56. f7 {[%emt 0:01:57]} Rxh3+ {[%emt 0:00:05]} 57. Kg5 {[%emt 0:00:12]} Rf3 {[%emt 0:00:14]} 58. f8=Q {[%emt 0:00:12]} Rxf8 {[%emt 0:00:02]} 59. Rxf8 {[%emt 0:00:05]} c2 {[%emt 0:00:09]} 60. Rc8 {[%emt 0:00:31]} Kd3 {[%emt 0:00:03]} 61. Kf4 {[%emt 0:00:03]} Kd2 {[%emt 0:00:04]} 62. Ke4 {[%emt 0:00:05]} c1=Q {[%emt 0:00:05]} 63. Rxc1 {[%emt 0:00:02]} Kxc1 {[%emt 0:00:02]} 64. Kd5 {[%emt 0:00:31]} 1/2-1/2

[Event "Biel Master Tournament 2019"]
[Site "Biel"]
[Date "2019.07.25"]
[Round "4.8"]
[White "Stany, G.A."]
[Black "Santos Latasa, Jaime"]
[Result "1/2-1/2"]
[ECO "B57"]
[WhiteElo "2525"]
[BlackElo "2594"]
[Annotator "ChessBase"]
[PlyCount "55"]
[EventDate "2019.07.20"]
[EventType "swiss"]
[EventCountry "SUI"]
[SourceTitle "playchess.com"]
[Source "ChessBase"]
[SourceQuality "1"]
[TimeControl "40/5400+30:1800+30"]

1. e4 {[%emt 0:00:00]} c5 {[%emt 0:00:56]} 2. Nf3 {[%emt 0:00:00]} d6 {[%emt 0:00:07]} 3. d4 {[%emt 0:00:00]} cxd4 {[%emt 0:00:07]} 4. Nxd4 {[%emt 0:00:00]} Nf6 {[%emt 0:00:08]} 5. Nc3 {[%emt 0:00:00]} a6 {[%emt 0:00:03]} 6. Bd3 {[%emt 0:00:00]} e6 {[%emt 0:00:05]} 7. f4 {[%emt 0:00:14]} Qc7 {[%emt 0:00:18]} 8. a4 {[%emt 0:09:55]} Nc6 {[%emt 0:01:59]} 9. Nb3 {[%emt 0:00:11]} b6 {[%emt 0:00:20]} 10. O-O {[%emt 0:00:26]} Be7 {[%emt 0:00:24]} 11. Be3 {[%emt 0:03:33]} O-O {[%emt 0:00:33]} 12. Qf3 {[%emt 0:00:52]} Rb8 {[%emt 0:01:17]} 13. Kh1 {[%emt 0:01:59]} Re8 {[%emt 0:01:03]} 14. Rae1 {[%emt 0:02:28]} Bb7 {[%emt 0:02:25]} 15. Qh3 {[%emt 0:00:15]} Nb4 {[%emt 0:05:29]} 16. Nd4 {[%emt 0:02:48]} Nd7 {[%emt 0:04:26]} 17. Bg1 {[%emt 0:31:10]} Bf8 {[%emt 0:04:57]} 18. Re3 {[%emt 0:01:47]} Nc6 {[%emt 0:03:17]} 19. Nxc6 {[%emt 0:05:16]} Qxc6 {[%emt 0:01:06]} 20. e5 {[%emt 0:00:06]} h6 {[%emt 0:03:13]} 21. Ne4 {[%emt 0:08:20]} dxe5 {[%emt 0:02:42]} 22. fxe5 {[%emt 0:03:57]} Nxe5 {[%emt 0:01:17]} 23. Nf6+ {[%emt 0:06:45]} gxf6 {[%emt 0:00:13]} 24. Rg3+ {[%emt 0:00:04]} Bg7 {[%emt 0:01:38]} 25. Rxf6 {[%emt 0:00:06]} Nxd3 {[%emt 0:00:15]} 26. Rxg7+ {[%emt 0:00:08]} Kxg7 {[%emt 0:00:07]} 27. Qxh6+ {[%emt 0:00:04]} Kg8 {[%emt 0:00:05]} 28. Rg6+ {[%emt 0:00:03]} 1/2-1/2